bitfinex/quotes_BTCUSD_20240605
["timestamp","ask_amount","ask_price","bid_price","bid_amount"]
[1717571512552,0.02086,71190.0,71189.0,1.3543319]
[1717571512771,0.02086,71190.0,71189.0,1.39617322]
[1717571512982,0.02086,71190.0,71189.0,1.3543319]
[1717571513603,0.02086,71190.0,71189.0,1.41706539]
[1717571514275,0.02086,71190.0,71189.0,1.51706539]
[1717571514483,0.02086,71190.0,71189.0,1.50306539]
[1717571514692,0.02086,71190.0,71189.0,1.4403319]
[1717571514951,0.01986,71190.0,71189.0,1.4403319]
[1717571515179,0.01986,71190.0,71189.0,1.4543319]
[1717571515609,0.01986,71190.0,71189.0,1.53108334]
[1717571515790,0.01986,71190.0,71189.0,1.51708334]
[1717571516218,0.01986,71190.0,71189.0,1.50708334]
[1717571516592,0.01986,71190.0,71189.0,1.4543319]
[1717571516923,0.01986,71190.0,71189.0,1.4683319]
[1717571517957,0.01986,71190.0,71189.0,1.53108334]
[1717571518361,0.01986,71190.0,71189.0,1.51708334]
[1717571520394,0.01986,71190.0,71189.0,1.52108334]
[1717571520760,0.01986,71190.0,71189.0,1.53108334]
[1717571521490,0.01986,71190.0,71189.0,1.81202534]
[1717571521718,0.01986,71190.0,71189.0,1.53108334]
[1717571522185,0.01986,71190.0,71189.0,1.52108334]
[1717571523388,0.01986,71190.0,71189.0,1.53108334]
[1717571523824,0.01986,71190.0,71189.0,1.81202534]
[1717571525038,0.01986,71190.0,71189.0,1.4683319]
[1717571525250,0.01986,71190.0,71189.0,1.7492739]
[1717571525986,0.01986,71190.0,71189.0,1.7722739]
[1717571526186,0.01986,71190.0,71189.0,1.4913319]
[1717571526393,0.01986,71190.0,71189.0,1.7722739]
[1717571527519,0.01986,71190.0,71189.0,1.7622739]
[1717571527893,0.01986,71190.0,71189.0,1.7722739]
[1717571529123,0.01986,71190.0,71189.0,1.7622739]
[1717571529349,0.01986,71190.0,71189.0,1.4813319]
[1717571530004,0.01986,71190.0,71189.0,1.7622739]
[1717571531066,0.01986,71190.0,71189.0,1.82499295]
[1717571531293,0.01986,71190.0,71189.0,1.54405095]
[1717571531475,0.01986,71190.0,71189.0,1.54399009]
[1717571531902,0.01986,71190.0,71189.0,1.48127104]
[1717571532327,0.01986,71190.0,71189.0,1.54398676]
[1717571533971,0.01986,71190.0,71189.0,1.61218676]
[1717571534449,0.01986,71190.0,71189.0,1.62218676]
[1717571535217,0.01986,71190.0,71189.0,1.62218524]
[1717571535833,0.01986,71190.0,71189.0,1.61218524]
[1717571537004,0.01986,71190.0,71189.0,1.61218709]
[1717571537848,0.01986,71190.0,71189.0,1.63709155]
[1717571538872,0.02554254,71190.0,71189.0,1.46889155]
[1717571539048,0.02554254,71190.0,71189.0,1.1355856]
[1717571539049,0.27224254,71190.0,71189.0,1.1355856]
[1717571539282,0.28181019,71190.0,71189.0,1.1355856]
[1717571539473,0.28181019,71190.0,71189.0,0.79192639]
[1717571539633,0.27224254,71190.0,71189.0,0.79192639]
[1717571539839,0.28180769,71190.0,71189.0,0.79192639]
[1717571540054,0.28180769,71190.0,71189.0,0.77792639]
[1717571540532,0.28180769,71190.0,71189.0,0.74992639]
[1717571540944,0.27224254,71190.0,71189.0,0.74992639]
[1717571541381,0.28180769,71190.0,71189.0,0.76392639]
[1717571542162,0.28180769,71190.0,71189.0,0.77792639]
[1717571542561,0.28180769,71190.0,71189.0,0.76392639]
[1717571542988,0.28180769,71190.0,71189.0,0.77792639]
[1717571543934,0.28180769,71190.0,71189.0,0.78238588]
[1717571544394,0.11072515,71190.0,71189.0,1.06333938]
[1717571544791,0.10116,71190.0,71189.0,1.06333938]
[1717571544992,0.11072515,71190.0,71189.0,1.06333938]
[1717571545427,0.11640769,71190.0,71189.0,1.06333938]
[1717571546727,0.11072515,71190.0,71189.0,1.06333938]
[1717571547337,0.11072515,71190.0,71189.0,1.06337201]
[1717571547514,0.11547826,71190.0,71189.0,1.06337201]
[1717571549216,0.1211608,71190.0,71189.0,1.34431401]
[1717571549606,0.10116,71190.0,71189.0,1.34431401]
[1717571550173,0.10684254,71190.0,71189.0,1.33985452]
[1717571550376,0.25854254,71190.0,71189.0,1.33985452]
[1717571550963,0.01986,71190.0,71189.0,1.33985452]
[1717571551173,0.01986,71190.0,71189.0,1.34431401]
[1717571551634,0.01986,71190.0,71189.0,1.41251401]
[1717571561161,0.01986,71190.0,71189.0,2.07075601]
[1717571561380,0.01986,71190.0,71189.0,2.11255464]
[1717571561612,0.01986,71190.0,71189.0,2.07075601]
[1717571561834,0.01986,71190.0,71189.0,2.1443223]
[1717571562062,0.01986,71190.0,71189.0,1.8000223]
[1717571562287,0.01986,71190.0,71189.0,1.71645601]
[1717571562515,0.01986,71190.0,71189.0,1.75823026]
[1717571563232,0.01986,71190.0,71189.0,1.68541433]
[1717571563469,0.01986,71190.0,71189.0,1.75823476]
[1717571563971,0.01986,71190.0,71189.0,1.71644675]
[1717571564205,0.02554254,71190.0,71189.0,1.64824675]
[1717571564472,0.02554254,71190.0,71189.0,1.33984526]
[1717571564717,0.10274254,71190.0,71189.0,0.95888647]
[1717571564976,0.11469865,71190.0,71189.0,0.95888647]
[1717571565682,0.11469865,71190.0,71189.0,0.98188647]
[1717571566162,0.11469865,71190.0,71189.0,1.08188647]
[1717571566397,0.18692689,71190.0,71189.0,0.70094447]
[1717571566625,0.33417078,71190.0,71189.0,0.53352554]
[1717571566851,0.3516674,71190.0,71189.0,0.39305454]
[1717571567323,0.27943916,71190.0,71189.0,0.32023411]
[1717571567539,0.27943916,71190.0,71189.0,0.46070511]
[1717571567751,0.27389865,71190.0,71189.0,0.46070511]
[1717571567974,0.27943916,71190.0,71189.0,0.51954117]
[1717571568430,0.27943916,71190.0,71189.0,0.44670511]
[1717571568648,0.27389865,71190.0,71189.0,0.43270511]
[1717571568839,0.27389865,71190.0,71189.0,0.43870511]
[1717571569063,0.27389865,71190.0,71189.0,0.44670511]
[1717571569308,0.27943916,71190.0,71189.0,0.44670511]
[1717571572318,0.27943916,71190.0,71189.0,0.30623411]
[1717571573449,0.27943916,71190.0,71189.0,0.014946]
[1717571574286,0.27943916,71190.0,71189.0,0.008946]
[1717571574953,0.41990816,71190.0,71189.0,0.008946]
[1717571576151,0.41990816,71190.0,71189.0,0.000946]
[1717571577208,0.61990816,71190.0,71189.0,0.000946]
[1717571580108,0.62090816,71190.0,71189.0,0.000946]
[1717571580493,1.04626509,71190.0,71189.0,0.000946]
[1717571580770,1.14626509,71190.0,71189.0,0.000946]
[1717571580962,1.18827103,71190.0,71189.0,0.000946]
[1717571581366,1.14626509,71190.0,71189.0,0.000946]
[1717571581569,1.18827368,71190.0,71189.0,0.000946]
[1717571582236,1.71691168,71190.0,71189.0,0.000946]
[1717571582437,1.71691168,71190.0,71158.0,0.1581]
[1717571582438,0.00568254,71162.0,71161.0,0.140526]
[1717571582642,0.00568254,71162.0,71161.0,0.64921785]
[1717571582846,0.09217621,71162.0,71161.0,0.36427292]
[1717571583050,0.09217621,71162.0,71160.0,0.010946]
[1717571583051,0.20892305,71161.0,71160.0,0.010946]
[1717571583460,0.22155828,71161.0,71160.0,0.010946]
[1717571583633,0.01831777,71161.0,71160.0,0.151474]
[1717571584072,0.00568254,71161.0,71160.0,0.151474]
[1717571584277,0.01833177,71161.0,71160.0,0.151474]
[1717571584483,0.00568254,71161.0,71160.0,0.151474]
[1717571584654,0.01833177,71161.0,71160.0,0.153474]
[1717571584910,0.01832949,71161.0,71160.0,0.153474]
[1717571585114,0.01832949,71161.0,71160.0,0.151474]
[1717571585750,0.09962949,71161.0,71160.0,0.151474]
[1717571587376,0.09962949,71161.0,71160.0,0.156474]
[1717571588001,0.09962949,71161.0,71160.0,0.163474]
[1717571590244,0.01832949,71161.0,71160.0,0.30789293]
[1717571590687,0.00568254,71161.0,71160.0,0.30789293]
[1717571591532,0.01821562,71161.0,71160.0,0.30789293]
[1717571597505,0.01821562,71161.0,71160.0,0.163474]
[1717571598130,0.09321562,71161.0,71160.0,0.163474]
[1717571598387,0.16141562,71161.0,71160.0,0.163474]
[1717571598598,0.32545613,71161.0,71160.0,0.163474]
[1717571599002,0.31991562,71161.0,71160.0,0.163474]
[1717571599767,0.01821562,71161.0,71160.0,0.16793349]
[1717571599951,0.01821562,71161.0,71160.0,0.163474]
[1717571600148,0.00568254,71161.0,71160.0,0.163474]
[1717571600372,0.01819059,71161.0,71160.0,0.163474]
[1717571600616,0.00568254,71161.0,71160.0,0.163474]
[1717571600840,0.01818458,71161.0,71160.0,0.163474]
[1717571601073,0.00568254,71161.0,71160.0,0.163474]
[1717571601275,0.01820489,71161.0,71160.0,0.163474]
[1717571604288,0.01820489,71161.0,71160.0,0.16793349]
[1717571604525,0.01820489,71161.0,71160.0,0.163474]
[1717571604772,0.01820489,71161.0,71160.0,0.31235242]
[1717571605225,0.00568254,71161.0,71160.0,0.30789293]
[1717571605458,0.00568254,71161.0,71160.0,0.31235242]
[1717571605671,0.00568254,71166.0,71165.0,0.00445949]
[1717571605889,0.00568254,71166.0,71165.0,0.36889642]
[1717571606778,0.00568254,71166.0,71165.0,0.36443693]
[1717571607190,0.00568254,71166.0,71165.0,0.64993342]
[1717571607647,0.00768254,71166.0,71165.0,0.64993342]
[1717571607860,0.00768254,71166.0,71165.0,0.64547393]
[1717571608906,0.00768254,71166.0,71165.0,0.56597393]
[1717571609520,0.00568254,71166.0,71165.0,0.56597393]
[1717571609729,0.00568254,71166.0,71165.0,0.57097393]
[1717571609958,0.00568254,71166.0,71165.0,0.57797393]
[1717571610818,0.24178254,71166.0,71165.0,0.152518]
[1717571611038,0.31552305,71166.0,71165.0,0.152518]
[1717571611272,0.3280523,71166.0,71165.0,0.152518]
[1717571612082,0.3280523,71166.0,71165.0,0.012]
[1717571614069,0.25431179,71166.0,71165.0,0.012]
[1717571614290,0.25431179,71166.0,71165.0,0.152518]
[1717571614494,0.2598523,71166.0,71165.0,0.152518]
[1717571614687,0.25431179,71166.0,71165.0,0.152518]
[1717571616128,0.2598523,71166.0,71165.0,0.152518]
[1717571619431,0.2598523,71166.0,71165.0,0.012]
[1717571620403,0.3280523,71166.0,71165.0,0.012]
[1717571622161,0.4685683,71166.0,71165.0,0.012]
[1717571623515,0.5105491,71166.0,71165.0,0.012]
[1717571624163,0.4685683,71166.0,71165.0,0.012]
[1717571624370,0.51066303,71166.0,71165.0,0.012]
[1717571625471,0.4685683,71166.0,71165.0,0.012]
[1717571625702,0.6685683,71166.0,71165.0,0.012]
[1717571625945,0.73171039,71166.0,71165.0,0.012]
[1717571626387,0.53171039,71166.0,71165.0,0.012]
[1717571627135,0.4685683,71166.0,71165.0,0.012]
[1717571627606,0.53171039,71166.0,71165.0,0.012]
[1717571627837,0.4685683,71166.0,71165.0,0.012]
[1717571628076,0.2598523,71166.0,71165.0,0.012]
[1717571628289,0.3280523,71166.0,71165.0,0.012]
[1717571628502,0.37014621,71166.0,71165.0,0.012]
[1717571628717,0.1727523,71166.0,71165.0,0.012]
[1717571629571,0.01821179,71166.0,71165.0,0.012]
[1717571630867,0.01821179,71166.0,71165.0,0.245]
[1717571631064,0.00568254,71166.0,71165.0,0.245]
[1717571631742,0.00568254,71169.0,71168.0,0.00445949]
[1717571631951,0.00568254,71169.0,71168.0,0.14497149]
[1717571632160,0.00568254,71169.0,71168.0,0.140512]
[1717571632587,0.00568254,71169.0,71168.0,0.14497149]
[1717571633634,0.00568254,71169.0,71168.0,0.143512]
[1717571634014,0.00568254,71169.0,71168.0,0.144512]
[1717571635089,0.31882305,71169.0,71168.0,0.004]
[1717571635460,0.33109602,71169.0,71168.0,0.004]
[1717571635656,0.53109602,71169.0,71168.0,0.004]
[1717571635869,0.43359602,71169.0,71168.0,0.004]
[1717571636069,0.43259602,71169.0,71168.0,0.004]
[1717571637800,0.77310602,71169.0,71168.0,0.004]
[1717571639513,0.77310602,71169.0,71168.0,0.004946]
[1717571639734,0.40240602,71169.0,71168.0,0.004946]
[1717571639956,0.57310602,71169.0,71168.0,0.004946]
[1717571640392,0.57310602,71169.0,71168.0,0.001946]
[1717571640641,0.636229,71169.0,71168.0,0.001946]
[1717571640855,0.641229,71169.0,71168.0,0.001946]
[1717571641080,0.57810602,71169.0,71168.0,0.000946]
[1717571641295,0.58010602,71169.0,71168.0,0.001946]
[1717571641508,0.643229,71169.0,71168.0,0.001946]
[1717571641934,0.843229,71169.0,71168.0,0.001946]
[1717571643097,0.78010602,71169.0,71168.0,0.001946]
[1717571643722,0.84321446,71169.0,71168.0,0.001946]
[1717571644331,0.01022305,71161.0,71160.0,0.007892]
[1717571644761,0.02265929,71161.0,71160.0,0.007892]
[1717571644962,0.18905929,71161.0,71160.0,0.007892]
[1717571645631,0.27085929,71161.0,71160.0,0.007892]
[1717571646157,0.27085929,71161.0,71160.0,0.008892]
[1717571646808,0.41138529,71161.0,71160.0,0.008892]
[1717571647170,0.41138529,71161.0,71160.0,0.012892]
[1717571648200,0.41138529,71161.0,71160.0,0.008892]
[1717571648404,0.41138529,71161.0,71160.0,0.007892]
[1717571648627,0.41338529,71161.0,71160.0,0.007892]
[1717571648831,0.41738529,71161.0,71160.0,0.007892]
[1717571656010,0.31928529,71161.0,71160.0,0.007892]
[1717571656603,0.17875929,71161.0,71160.0,0.007892]
[1717571658832,0.51928529,71161.0,71160.0,0.007892]
[1717571659525,0.31928529,71161.0,71160.0,0.007892]
[1717571660101,0.31928529,71161.0,71160.0,0.002892]
[1717571661103,0.51928529,71161.0,71160.0,0.002892]
[1717571661931,0.31928529,71161.0,71160.0,0.002892]
[1717571663737,0.51928529,71161.0,71160.0,0.002892]
[1717571663989,0.31928529,71161.0,71160.0,0.002892]
[1717571665478,0.25098529,71161.0,71160.0,0.002892]
[1717571665725,0.31928529,71161.0,71160.0,0.002892]
[1717571666738,0.51928529,71161.0,71160.0,0.002892]
[1717571667581,0.31544465,71161.0,71160.0,0.002892]
[1717571667818,0.51544465,71161.0,71160.0,0.002892]
[1717571668043,0.47571491,71161.0,71160.0,0.002892]
[1717571668307,0.71151491,71161.0,71160.0,0.002892]
[1717571668780,0.72410382,71161.0,71160.0,0.002892]
[1717571669014,0.68203356,71161.0,71160.0,0.002892]
[1717571669241,0.72409739,71161.0,71160.0,0.002892]
[1717571669954,0.74512882,71161.0,71160.0,0.002892]
[1717571670512,0.68203356,71161.0,71160.0,0.002892]
[1717571671328,0.74512499,71161.0,71160.0,0.002892]
[1717571671903,0.68203356,71161.0,71160.0,0.002892]
[1717571672320,0.74512118,71161.0,71160.0,0.002892]
[1717571672626,0.74504301,71161.0,71160.0,0.002892]
[1717571674706,0.74590301,71161.0,71160.0,0.002892]
[1717571675669,0.68281539,71161.0,71160.0,0.002892]
[1717571676097,1.10828632,71161.0,71160.0,0.002892]
[1717571676512,1.19241334,71161.0,71160.0,0.002892]
[1717571676878,1.10828632,71161.0,71160.0,0.002892]
[1717571677496,1.19241334,71161.0,71160.0,0.002892]
[1717571677721,1.10828632,71161.0,71160.0,0.002892]
[1717571678247,1.21344509,71161.0,71160.0,0.002892]
[1717571678421,1.10828632,71161.0,71160.0,0.002892]
[1717571679379,1.21344509,71161.0,71160.0,0.002892]
[1717571680344,1.10828632,71161.0,71160.0,0.002892]
[1717571680722,1.10824189,71161.0,71160.0,0.002892]
[1717571681132,1.1082418,71161.0,71160.0,0.002892]
[1717571681338,1.0399418,71161.0,71160.0,0.002892]
[1717571681547,1.1082418,71161.0,71160.0,0.002892]
[1717571682918,0.02013814,71161.0,71160.0,0.236192]
[1717571685891,0.02013814,71161.0,71160.0,0.38117949]
[1717571686724,0.0154556,71161.0,71160.0,0.38117949]
[1717571686934,0.0134556,71161.0,71160.0,0.38117949]
[1717571687134,0.00486,71161.0,71160.0,0.38117949]
[1717571687524,0.00486,71161.0,71160.0,0.38317949]
[1717571687724,0.00954254,71161.0,71160.0,0.38317949]
[1717571688138,0.00954254,71161.0,71160.0,0.38117949]
[1717571688340,0.00554254,71161.0,71160.0,0.37672]
[1717571688543,0.00754254,71161.0,71160.0,0.38972]
[1717571688915,0.00554254,71161.0,71160.0,0.39417949]
[1717571689354,0.00554254,71161.0,71160.0,0.40417949]
[1717571690808,0.00554254,71161.0,71160.0,0.39972]
[1717571691400,0.01413247,71161.0,71160.0,0.39972]
[1717571691994,0.01413247,71161.0,71160.0,0.42070755]
[1717571692202,0.01413247,71161.0,71160.0,0.39972]
[1717571701009,0.08797298,71161.0,71160.0,0.025892]
[1717571703275,0.01967298,71161.0,71160.0,0.025892]
[1717571703435,0.08797298,71161.0,71160.0,0.025892]
[1717571704068,0.32787298,71161.0,71160.0,0.025892]
[1717571708141,0.32233247,71161.0,71160.0,0.025892]
[1717571708351,0.16023247,71161.0,71160.0,0.025892]
[1717571708559,0.01413247,71161.0,71160.0,0.025892]
[1717571708925,0.08243247,71161.0,71160.0,0.025892]
[1717571709556,0.08243247,71161.0,71160.0,0.185192]
[1717571710664,0.01413247,71161.0,71160.0,0.185192]
[1717571710903,0.08243247,71161.0,71160.0,0.185192]
[1717571711116,0.08243247,71161.0,71160.0,0.025892]
[1717571712209,0.08797298,71161.0,71160.0,0.025892]
[1717571712846,0.08243247,71161.0,71160.0,0.025892]
[1717571713303,0.08797298,71161.0,71160.0,0.025892]
[1717571713504,0.08243247,71161.0,71160.0,0.025892]
[1717571713880,0.08797298,71161.0,71160.0,0.025892]
[1717571714961,0.08243247,71161.0,71160.0,0.025892]
[1717571715411,0.08243247,71161.0,71160.0,0.184392]
[1717571720680,0.01413247,71161.0,71160.0,0.184392]
[1717571720883,0.08243247,71161.0,71160.0,0.184392]
[1717571723102,0.08243247,71161.0,71160.0,0.20537904]
[1717571723760,0.07384254,71161.0,71160.0,0.20537904]
[1717571724315,0.00554254,71161.0,71160.0,0.35190704]
[1717571724528,0.00554254,71161.0,71160.0,0.41677949]
[1717571725607,0.00554254,71161.0,71160.0,0.69783549]
[1717571725608,0.00086,71161.0,71160.0,0.69783549]
[1717571730861,0.00554254,71161.0,71160.0,0.69783549]
[1717571731155,0.00086,71161.0,71160.0,0.69783549]
[1717571733688,0.00554254,71161.0,71160.0,0.69783549]
[1717571735354,0.00086,71161.0,71160.0,0.69783549]
[1717571735552,0.00554254,71161.0,71160.0,0.69783549]
[1717571739259,0.00086,71161.0,71160.0,0.69783549]
[1717571741035,0.00554254,71161.0,71160.0,0.69783549]
[1717571741465,0.00086,71161.0,71160.0,1.12331042]
[1717571742537,0.00554254,71161.0,71160.0,0.83565442]
[1717571745366,0.00086,71161.0,71160.0,0.83565442]
[1717571745572,0.00554254,71161.0,71160.0,0.83565442]
[1717571746592,0.00554254,71161.0,71160.0,0.83119493]
[1717571746816,0.00554254,71161.0,71160.0,0.83565442]
[1717571747041,0.07384254,71161.0,71160.0,0.16642]
[1717571747615,0.00554254,71161.0,71160.0,0.17087949]
[1717571748032,0.00554254,71161.0,71160.0,0.24374435]
[1717571748679,0.00086,71161.0,71160.0,0.24374435]
[1717571748896,0.00554254,71161.0,71160.0,0.48384435]
[1717571749568,0.00086,71161.0,71160.0,0.48384435]
[1717571750216,0.00554254,71161.0,71160.0,0.48384435]
[1717571750436,0.00086,71161.0,71160.0,0.48384435]
[1717571751455,0.00086,71161.0,71160.0,0.69221928]
[1717571751653,0.00086,71161.0,71160.0,0.92991928]
[1717571751856,0.00554254,71161.0,71160.0,0.92991928]
[1717571752617,0.00086,71161.0,71160.0,0.92991928]
[1717571753254,0.00554254,71161.0,71160.0,0.92991928]
[1717571753465,0.00086,71161.0,71160.0,0.92991928]
[1717571753677,0.00086,71161.0,71160.0,1.21097528]
[1717571754513,0.00086,71161.0,71160.0,1.38927528]
[1717571755141,0.00086,71161.0,71160.0,1.37927528]
[1717571755562,0.00086,71161.0,71160.0,1.36627528]
[1717571755798,0.00086,71161.0,71160.0,1.38027528]
[1717571755975,0.00086,71161.0,71160.0,1.31197528]
[1717571756427,0.2583,71175.0,71173.0,0.14496149]
[1717571756428,0.00468254,71174.0,71173.0,0.14496149]
[1717571756841,0.00468254,71174.0,71173.0,0.140502]
[1717571757276,0.00468254,71174.0,71173.0,0.14496149]
[1717571759048,0.00468254,71174.0,71173.0,0.14796149]
[1717571759249,0.00468254,71174.0,71173.0,0.149502]
[1717571759463,0.00468254,71174.0,71173.0,0.15396149]
[1717571763693,0.00468254,71180.0,71177.0,0.00445949]
[1717571763912,0.00468254,71178.0,71177.0,0.14495349]
[1717571764746,0.07298254,71178.0,71177.0,0.14495349]
[1717571764960,0.07298254,71178.0,71177.0,0.140494]
[1717571765807,0.07298254,71178.0,71177.0,0.146494]
[1717571766439,0.07298254,71178.0,71177.0,0.149494]
[1717571768852,0.00468254,71178.0,71177.0,0.149494]
[1717571769070,0.07298254,71178.0,71177.0,0.149494]
[1717571769278,0.07298254,71178.0,71177.0,0.15395349]
[1717571769929,0.07298254,71178.0,71177.0,0.149494]
[1717571771209,0.15198254,71178.0,71177.0,0.149494]
[1717571772713,0.15284254,71178.0,71177.0,0.149494]
[1717571772930,0.32188305,71178.0,71177.0,0.009]
[1717571773138,0.25358305,71178.0,71177.0,0.009]
[1717571773344,0.32188305,71178.0,71177.0,0.009]
[1717571773553,0.31634254,71178.0,71177.0,0.009]
[1717571775263,0.24804254,71178.0,71177.0,0.009]
[1717571775471,0.31634254,71178.0,71177.0,0.009]
[1717571776334,0.24804254,71178.0,71177.0,0.009]
[1717571776525,0.15034254,71178.0,71177.0,0.009]
[1717571776730,0.08204254,71178.0,71177.0,0.009]
[1717571776933,0.15034254,71178.0,71177.0,0.149494]
[1717571778379,0.15104254,71178.0,71177.0,0.149494]
[1717571778586,0.00554254,71178.0,71177.0,0.143494]
[1717571778821,0.07384254,71178.0,71177.0,0.143494]
[1717571779009,0.00554254,71178.0,71177.0,0.15295349]
[1717571779690,0.00554254,71178.0,71177.0,0.145494]
[1717571779888,0.00554254,71178.0,71177.0,0.14995349]
[1717571780038,0.00554254,71178.0,71177.0,0.15195349]
[1717571780743,0.00554254,71178.0,71177.0,0.147494]
[1717571788975,0.01108305,71178.0,71177.0,0.007]
[1717571789142,0.24538305,71178.0,71177.0,0.007]
[1717571790353,0.23984254,71178.0,71177.0,0.007]
[1717571791444,0.24538305,71178.0,71177.0,0.007]
[1717571793978,0.23984254,71178.0,71177.0,0.007]
[1717571798562,0.23984254,71178.0,71177.0,0.002]
[1717571798563,0.08174254,71178.0,71177.0,0.002]
[1717571798742,0.08174254,71178.0,71177.0,0.007]
[1717571798954,0.00554254,71178.0,71177.0,0.007]
[1717571799355,0.00554254,71178.0,71177.0,0.002]
[1717571799992,0.00468254,71177.0,71176.0,0.140495]
[1717571800134,0.07298254,71177.0,71176.0,0.140495]
[1717571800994,0.00468254,71177.0,71176.0,0.140495]
[1717571801200,0.07298254,71177.0,71176.0,0.140495]
[1717571802250,0.07298254,71177.0,71176.0,0.145495]
[1717571803010,0.07852305,71177.0,71176.0,0.145495]
[1717571803206,0.07298254,71177.0,71176.0,0.145495]
[1717571803782,0.07298254,71177.0,71176.0,0.147495]
[1717571804750,0.21901705,71177.0,71176.0,0.007]
[1717571804998,0.42145693,71177.0,71176.0,0.007]
[1717571805174,0.32880541,71177.0,71176.0,0.007]
[1717571805382,0.26050541,71177.0,71176.0,0.007]
[1717571805575,0.4214423,71177.0,71176.0,0.007]
[1717571805955,0.54087219,71177.0,71176.0,0.007]
[1717571806156,0.32653768,71177.0,71176.0,0.007]
[1717571806377,0.31612305,71177.0,71176.0,0.007]
[1717571806577,0.31058254,71177.0,71176.0,0.007]
[1717571807030,0.31612305,71177.0,71176.0,0.007]
[1717571807375,0.37930586,71177.0,71176.0,0.007]
[1717571808076,0.31612305,71177.0,71176.0,0.007]
[1717571808489,0.45107654,71177.0,71176.0,0.007]
[1717571808885,0.44595082,71177.0,71176.0,0.007]
[1717571809095,0.51425082,71177.0,71176.0,0.007]
[1717571809456,0.45107654,71177.0,71176.0,0.007]
[1717571809589,0.53533168,71177.0,71176.0,0.007]
[1717571810022,0.45661705,71177.0,71176.0,0.007]
[1717571810985,0.45107654,71177.0,71176.0,0.007]
[1717571811326,0.45661705,71177.0,71176.0,0.007]
[1717571811733,0.45661705,71177.0,71176.0,0.002]
[1717571811734,0.45107654,71177.0,71176.0,0.002]
[1717571811942,0.00468254,71169.0,71168.0,0.00445949]
[1717571812188,0.07298254,71169.0,71168.0,0.00445949]
[1717571812948,0.07298254,71169.0,71168.0,0.14497149]
[1717571813959,0.0683,71169.0,71168.0,0.15397149]
[1717571814182,0.00468254,71170.0,71169.0,0.22616949]
[1717571814375,0.00468254,71170.0,71169.0,0.08565949]
[1717571815140,0.00250518,71170.0,71169.0,0.08565949]
[1717571815345,0.00250518,71170.0,71169.0,0.0862]
[1717571815567,0.00250518,71170.0,71169.0,0.09065949]
[1717571816590,0.00250518,71170.0,71169.0,0.09265949]
[1717571817370,0.00250518,71170.0,71169.0,0.0882]
[1717571818398,0.00250518,71170.0,71169.0,0.09265949]
[1717571820213,0.00250518,71170.0,71169.0,0.0882]
[1717571824983,0.00250518,71170.0,71169.0,0.09265949]
[1717571825191,0.07080518,71170.0,71169.0,0.09265949]
[1717571825391,0.07080518,71170.0,71169.0,0.0882]
[1717571825611,0.07080518,71170.0,71169.0,0.09265949]
[1717571825799,0.00250518,71170.0,71169.0,0.09265949]
[1717571826011,0.07080518,71170.0,71169.0,0.09265949]
[1717571828779,0.07080518,71170.0,71169.0,0.0882]
[1717571832413,0.07080518,71170.0,71169.0,0.007]
[1717571832617,0.07634569,71170.0,71169.0,0.007]
[1717571833029,0.15324569,71170.0,71169.0,0.007]
[1717571833833,0.14770518,71170.0,71169.0,0.007]
[1717571836608,0.15324569,71170.0,71169.0,0.007]
[1717571837013,0.21685369,71170.0,71169.0,0.007]
[1717571837215,0.46255369,71170.0,71169.0,0.007]
[1717571837421,0.56780849,71170.0,71169.0,0.007]
[1717571837685,0.46255369,71170.0,71169.0,0.007]
[1717571837842,0.66255369,71170.0,71169.0,0.007]
[1717571838863,1.08798962,71170.0,71169.0,0.007]
[1717571839268,1.36900662,71170.0,71169.0,0.007]
[1717571839485,1.16900662,71170.0,71169.0,0.007]
[1717571839667,1.36900662,71170.0,71169.0,0.007]
[1717571839870,1.36900662,71170.0,71169.0,0.002]
[1717571840751,0.33606451,71162.0,71161.0,0.001086]
[1717571840989,0.69064568,71162.0,71161.0,0.001086]
[1717571841191,0.64856969,71162.0,71161.0,0.001086]
[1717571841408,0.69063691,71162.0,71161.0,0.001086]
[1717571842257,0.64856969,71162.0,71161.0,0.001086]
[1717571842486,0.69063691,71162.0,71161.0,0.001086]
[1717571842932,0.64856969,71162.0,71161.0,0.001086]
[1717571843387,0.64956969,71162.0,71161.0,0.002086]
[1717571843613,0.64402918,71162.0,71161.0,0.003086]
[1717571843823,0.64956969,71162.0,71161.0,0.003086]
[1717571844284,0.64402918,71162.0,71161.0,0.003086]
[1717571844520,0.33402918,71162.0,71161.0,0.003086]
[1717571844745,0.40232918,71162.0,71161.0,0.003086]
[1717571845379,0.40232918,71162.0,71161.0,0.002086]
[1717571845380,0.40786969,71162.0,71161.0,0.002086]
[1717571845592,0.40232918,71162.0,71161.0,0.002086]
[1717571846018,0.40232918,71162.0,71161.0,0.001086]
[1717571846019,0.40686969,71162.0,71161.0,0.001086]
[1717571846449,0.40786969,71162.0,71161.0,0.001086]
[1717571846878,0.40786969,71162.0,71161.0,0.002086]
[1717571859837,0.40232918,71162.0,71161.0,0.002086]
[1717571860206,0.40786969,71162.0,71161.0,0.002086]
[1717571860656,0.40232918,71162.0,71161.0,0.002086]
[1717571862719,0.40232918,71162.0,71161.0,0.241186]
[1717571865026,0.40232918,71162.0,71161.0,0.002086]
[1717571865461,0.40786969,71162.0,71161.0,0.002086]
[1717571866681,0.40232918,71162.0,71161.0,0.002086]
[1717571867089,0.40786969,71162.0,71161.0,0.002086]
[1717571867724,0.40232918,71162.0,71161.0,0.002086]
[1717571869572,0.19350518,71162.0,71161.0,0.002086]
[1717571869777,0.26180518,71162.0,71161.0,0.079386]
[1717571870225,0.26180518,71162.0,71161.0,0.08384549]
[1717571870424,0.26180518,71162.0,71161.0,0.079386]
[1717571870901,0.26180518,71162.0,71161.0,0.078386]
[1717571871115,0.19350518,71162.0,71161.0,0.23824549]
[1717571871327,0.26180518,71162.0,71161.0,0.23824549]
[1717571871977,0.26180518,71162.0,71161.0,0.234686]
[1717571872184,0.26080518,71162.0,71161.0,0.234686]
[1717571872546,0.26180518,71162.0,71161.0,0.234686]
[1717571872750,0.26180518,71162.0,71161.0,0.233686]
[1717571872950,0.26080518,71162.0,71161.0,0.233686]
[1717571873332,0.26180518,71162.0,71161.0,0.233686]
[1717571874834,0.19350518,71162.0,71161.0,0.233686]
[1717571875042,0.26180518,71162.0,71161.0,0.233686]
[1717571875901,0.19350518,71162.0,71161.0,0.233686]
[1717571876105,0.26180518,71162.0,71161.0,0.233686]